[Event "31st MPL National U18 Chess-ch 2022"]
[Site "Pollachi"]
[Date "2022.04.19"]
[Round "3.2"]
[White "Nawin M S"]
[Black "Srihari L R"]
[Result "1/2-1/2"]
[ECO "D11"]
[WhiteElo "1704"]
[BlackElo "2400"]
[Annotator "TA"]
[PlyCount "95"]
[EventDate "2022.04.18"]
[EventCountry "IND"]
[SourceTitle "playchess.com"]
[Source "ChessBase"]
[SourceQuality "1"]
[TimeControl "5400+30"]

{[%evp 12,95,31,25,36,0,0,0,0,-21,13,0,4,8,12,0,9,8,10,-4,4,0,60,56,57,58,58,62,138,147,257,261,273,279,260,159,202,206,188,193,257,273,299,293,338,341,374,369,480,465,440,397,429,364,459,460,454,373,520,511,586,539,532,524,517,516,1014,1023,1300,1285,1248,1200,1899,1828,1994,1985,2137,2093,2204,2179,2116,2051,29986,29987,29988,29989]} 1. Nf3 {[%emt 0:00:25]} d5 {[%emt 0:00:05]} 2. c4 {[%emt 0:00:16]} c6 {[%emt 0:01:07]} 3. d4 {[%emt 0:02:47]} Nf6 {[%emt 0:00:28]} 4. Qc2 {[%emt 0:01:15]} g6 {[%emt 0:02:33]} 5. Bf4 {[%emt 0:00:26]} Bf5 {[%emt 0:03:44]} 6. Qb3 {[%emt 0:02:42]} Qb6 {[%emt 0:00:09]} 7. e3 {[%emt 0:02:01] 7.e3 scores better than 7.c5.} Na6 {[%emt 0:10:56][%cal Bb8a6,Ba6b4,Bb4c2][%mdl 32] D11: Slav Defence: 3 Nf3 sidelines and 3...Nf6 4 e3 Bg4.} 8. Be2 {[%emt 0:15:27]} dxc4 {[%emt 0:32:20]} 9. Bxc4 {[%emt 0:00:43]} Qxb3 {[%emt 0:00:02] The position is equal.} 10. Bxb3 {[%emt 0:05:40]} Nb4 {[%emt 0:00:45]} (10... Nh5 $5 {[%cal Rh5f4]}) 11. O-O {[%emt 0:00:56] [#]} Nc2 $146 {[%emt 0:16:57]} ({Predecessor:} 11... Bg7 12. Nc3 O-O 13. Ne5 Nbd5 14. Nxd5 cxd5 15. h3 Rfc8 16. g4 Bc2 17. Rfc1 Bxb3 18. axb3 a6 19. Bg5 e6 20. Bxf6 Bxf6 21. Nd7 Bd8 22. Kf1 Kg7 {½-½ (22) Spassov,L (2421)-Galunov,T (2364) Kula 2010}) 12. Bxc2 {[%emt 0:00:13]} Bxc2 {[%emt 0:00:01]} 13. Nbd2 {[%emt 0:02:12][%cal Bb1d2,Bd2c4,Bc4a5][%mdl 32]} Bg7 {[%emt 0:00:53]} 14. Rfc1 {[%emt 0:03:16]} Bf5 {[%emt 0:06:54]} 15. Nc4 {[%emt 0:04:06]} Nd5 {[%emt 0:09:31]} 16. Bg3 {[%emt 0:01:47]} Be4 {[%emt 0:05:13]} ({Better is} 16... h5 $11) 17. Nfd2 $1 $14 {[%emt 0:19:30][%cal Bf3d2,Bd2b3,Bb3c5,Bc5d3,Bd3c5][%mdl 32]} Bd3 {[%emt 0:00:15]} 18. Na5 $36 {[%emt 0:00:08][%mdl 2048] White has some pressure.} O-O-O {[%emt 0:00:22]} 19. Ndb3 {[%emt 0:02:43] Nc5 is the strong threat.} Bb5 {[%emt 0:03:40] Black is now going downhill.} (19... Bf5 $1 $14) 20. a4 $16 {[%emt 0:03:28]} Ba6 {[%emt 0:00:08] [#]} (20... Be2 $16) 21. Nc5 $1 $18 {[%emt 0:00:55]} Nb4 {[%emt 0:00:11]} 22. Ra3 {[%emt 0:03:48] Threatens to win with Rb3.} Rd5 {[%emt 0:00:07][%cal Od5c5]} 23. Rb3 {[%emt 0:03:03]} Nd3 {[%emt 0:00:21]} 24. Nxd3 {[%emt 0:00:36]} Rxa5 {[%emt 0:00:16]} 25. Nc5 {[%emt 0:00:07]} e5 {[%emt 0:02:58]} (25... Rd8 $142) 26. Bxe5 {[%emt 0:01:21]} Bxe5 {[%emt 0:02:58]} 27. dxe5 {[%emt 0:00:12]} Rd8 {[%emt 0:00:27][%cal Oa5c5] Hoping for ...Rxc5!} 28. Rbc3 {[%emt 0:00:05]} b6 {[%emt 0:00:38] [#]} 29. b4 {[%emt 0:02:46]} bxc5 {[%emt 0:00:29]} (29... Rxc5 30. bxc5) 30. bxa5 {[%emt 0:00:04][%mdl 4096] Endgame KRR-KRB} c4 {[%emt 0:00:08]} 31. f4 {[%emt 0:00:23]} Rd2 {[%emt 0:00:52]} 32. R1c2 {[%emt 0:00:33]} Rd1+ {[%emt 0:00:01]} 33. Kf2 {[%emt 0:00:05]} Kd7 {[%emt 0:00:34]} 34. Ke2 {[%emt 0:00:08]} Rg1 {[%emt 0:00:47]} 35. Rd2+ {[%emt 0:00:07]} Ke7 {[%emt 0:00:28]} 36. Kf2 {[%emt 0:00:25]} Ra1 {[%emt 0:00:39]} 37. Rd6 {[%emt 0:00:06]} Ra2+ {[%emt 0:00:28]} 38. Kg3 {[%emt 0:00:46]} Bb7 {[%emt 0:01:05]} (38... Rxa4 $142 39. Rxc6 Rxa5 40. Rc7+ Ke8 41. Rxa7 Ra4) 39. Rxc4 {[%emt 0:00:11]} Ra3 {[%emt 0:00:00]} 40. Rb4 {[%emt 0:00:47]} Bc8 {[%emt 0:00:14]} 41. Rxc6 {[%emt 0:00:33]} Bd7 {[%emt 0:00:45]} 42. Rc7 {[%emt 0:00:09] aiming for Rd4.} Rxe3+ {[%emt 0:00:22]} 43. Kf2 {[%emt 0:00:06]} Rd3 {[%emt 0:00:21]} 44. Rxa7 {[%emt 0:00:06]} Ke6 {[%emt 0:00:09]} 45. Rb6+ {[%emt 0:00:08]} Kf5 {[%emt 0:00:37]} 46. Rd6 {[%emt 0:00:08]} Rxd6 {[%emt 0:00:04]} 47. exd6 {[%emt 0:00:10]} Bxa4 {[%emt 0:00:05]} 48. d7 {[%emt 0:00:07][%mdl 32768] Weighted Error Value: White=0.14 (very precise) /Black=0.38. An unexpected result.} 1/2-1/2

[Event "31st MPL National U18 Chess-ch 2022"]
[Site "Pollachi"]
[Date "2022.04.19"]
[Round "3.3"]
[White "John Veny Akkarakaran"]
[Black "Ayush Sharma"]
[Result "1-0"]
[ECO "B92"]
[WhiteElo "1687"]
[BlackElo "2302"]
[Annotator "TA"]
[PlyCount "117"]
[EventDate "2022.04.18"]
[EventCountry "IND"]
[SourceTitle "playchess.com"]
[Source "ChessBase"]
[SourceQuality "1"]
[TimeControl "5400+30"]

{[%evp 20,117,53,24,42,55,70,65,60,88,83,30,30,45,100,99,104,102,98,85,102,94,110,114,205,193,277,279,282,265,293,284,260,271,306,304,394,386,400,412,407,395,567,546,496,437,422,405,545,358,902,901,817,630,617,589,589,589,589,589,589,589,579,543,691,679,701,701,666,642,612,529,2415,1805,1459,628,7158,9977,29970,29971,6129,29958,29976,29977,29977,29977,29978,29978,29978,29979,29980,29981,29981,29982,29982,29983,29983,29984,29982,29981]} 1. e4 {[%emt 0:00:04]} c5 {[%emt 0:00:01]} 2. Nf3 {[%emt 0:00:17]} d6 {[%emt 0:00:02]} 3. d4 {[%emt 0:00:10]} cxd4 {[%emt 0:00:03]} 4. Nxd4 {[%emt 0:00:06]} Nf6 {[%emt 0:00:03]} 5. Nc3 {[%emt 0:00:07]} a6 {[%emt 0:00:03]} 6. Be2 {[%emt 0:00:10]} e5 {[%emt 0:00:19]} 7. Nb3 {[%emt 0:00:07]} Be7 {[%emt 0:00:21]} 8. O-O {[%emt 0:00:10]} O-O {[%emt 0:00:17]} 9. Kh1 {[%emt 0:00:12]} Nbd7 {[%emt 0:02:07] 9...Be6 is setting a new trend.} 10. a4 {[%emt 0:00:42]} b6 {[%emt 0:00:47]} 11. Be3 {[%emt 0:00:28]} Bb7 {[%emt 0:03:21] B92: Sicilian Najdorf: 6 Be2.} 12. f3 {[%emt 0:00:07]} Rc8 {[%emt 0:00:51]} 13. Nd2 {[%emt 0:00:24]} Qc7 {[%emt 0:15:39] White is slightly better.} 14. Nc4 {[%emt 0:00:08] [#]} Rcd8 $146 {[%emt 0:03:36]} ({Predecessor:} 14... Bc6 15. Qd2 Rb8 16. Rfd1 Rfd8 17. Nd5 Bxd5 18. exd5 Rdc8 19. a5 b5 20. Na3 Qb7 {1-0 (53) Jakovenko,D (2506)-Jobava,B (2480) Yerevan 2000}) 15. a5 {[%emt 0:09:25]} (15. Bf2 $16) 15... b5 $11 {[%emt 0:00:57]} 16. Nb6 {[%emt 0:00:22]} d5 {[%emt 0:07:14] Black is on the road to losing.} (16... Bc6 $14) 17. Ncxd5 $16 {[%emt 0:17:43] &Bianco is more active.} Nxd5 {[%emt 0:00:17]} 18. Nxd5 {[%emt 0:00:34]} Bxd5 {[%emt 0:00:12]} 19. exd5 {[%emt 0:06:13]} Bc5 {[%emt 0:02:21]} 20. Bg5 $36 {[%emt 0:04:14][%mdl 2048] Keeping Black busy.} f6 {[%emt 0:00:47]} 21. Bd2 {[%emt 0:02:10]} f5 {[%emt 0:07:18] [#]} (21... Qd6 $16) 22. b4 $1 $18 {[%emt 0:04:17]} Ba7 {[%emt 0:02:48]} (22... Bd6 $142 23. Rc1 Nf6) 23. c4 {[%emt 0:01:13]} bxc4 {[%emt 0:00:01]} 24. Rc1 {[%emt 0:00:59][%cal Ba1c1,Bc1c6,Bc6c7][%mdl 32]} Nf6 {[%emt 0:01:25]} 25. Bxc4 {[%emt 0:02:20]} Qd6 {[%emt 0:00:01]} 26. Qe2 {[%emt 0:09:44]} f4 {[%emt 0:00:36]} 27. Bxa6 {[%emt 0:13:23]} Kh8 {[%emt 0:00:02]} 28. b5 {[%emt 0:02:04]} Bd4 {[%emt 0:00:01]} 29. Rc6 {[%emt 0:01:48]} Qxd5 {[%emt 0:02:22]} 30. Qc4 {[%emt 0:02:45]} Qd7 {[%emt 0:00:01]} (30... Rg8 $142 31. Qxd5 Rxd5) 31. Bb4 {[%emt 0:03:36][%cal Bd2b4,Bb4e7,Be7f6][%mdl 32]} Rfe8 {[%emt 0:02:19]} 32. Rc7 {[%emt 0:02:06]} Qf5 {[%emt 0:00:03]} 33. Qf7 {[%emt 0:01:55][%csl Gc7][%cal Rf7g7] [#]} Rg8 {[%emt 0:03:01]} 34. Be7 {[%emt 0:01:27]} Rd7 {[%emt 0:00:16]} (34... Rb8 35. Bxf6 Qxf6) 35. b6 {[%emt 0:02:48][%cal Bb5b6,Bb6b7][%mdl 32]} e4 {[%emt 0:06:49]} 36. Rxd7 {[%emt 0:01:29]} Qxd7 {[%emt 0:01:41]} 37. Bc4 {[%emt 0:01:09] Black must now prevent Bxf6. A strong pair of Bishops.} Ra8 {[%emt 0:04:58]} 38. Bxf6 {[%emt 0:01:04] White wants to mate with b7.} Qxf7 {[%emt 0:00:02]} 39. Bxf7 {[%emt 0:00:02]} gxf6 {[%emt 0:00:17][%mdl 4096] Endgame KRB-KRB} 40. b7 {[%emt 0:01:28]} Rb8 {[%emt 0:00:09]} 41. a6 {[%emt 0:01:20]} e3 {[%emt 0:00:31]} 42. Rc1 {[%emt 0:03:34]} Ba7 {[%emt 0:00:58]} 43. Rc8+ {[%emt 0:00:25]} Kg7 {[%emt 0:00:02]} 44. Bc4 {[%emt 0:00:01]} Kg6 {[%emt 0:03:36]} 45. g3 {[%emt 0:00:22]} h5 {[%emt 0:02:14]} 46. Bd3+ {[%emt 0:01:24]} Kf7 {[%emt 0:01:51]} 47. gxf4 {[%emt 0:00:29]} (47. h4 $142 Ke6 48. gxf4) 47... Ke6 {[%emt 0:00:32]} 48. h4 {[%emt 0:00:41]} Kd5 {[%emt 0:01:27]} 49. Kg2 {[%emt 0:00:28]} Kd4 {[%emt 0:00:09]} 50. Be2 {[%emt 0:00:21]} f5 {[%emt 0:01:52] White mates.} 51. Kf1 {[%emt 0:00:17]} Kd5 {[%emt 0:00:03]} 52. Bb5 {[%emt 0:00:20]} Kd6 {[%emt 0:00:50]} 53. Ke2 {[%emt 0:00:10]} Ke7 {[%emt 0:00:06]} 54. Be8 {[%emt 0:00:19]} Kf6 {[%emt 0:00:50]} 55. Bxh5 {[%emt 0:00:13]} Kg7 {[%emt 0:00:06]} 56. Be8 {[%emt 0:00:08]} Kh6 {[%emt 0:00:04]} 57. Rxb8 {[%emt 0:00:32]} Bxb8 {[%emt 0:00:07]} 58. Kxe3 {[%emt 0:00:03]} Kg7 {[%emt 0:00:39]} 59. h5 {[%emt 0:00:48] Weighted Error Value: White=0.27 (precise) /Black=0.58} 1-0

[Event "31st MPL National U18 Chess-ch 2022"]
[Site "Pollachi"]
[Date "2022.04.19"]
[Round "3.5"]
[White "Shadhursshaan R"]
[Black "Ayushh Ravikumar"]
[Result "1/2-1/2"]
[ECO "B67"]
[WhiteElo "1633"]
[BlackElo "2269"]
[Annotator "TA"]
[PlyCount "64"]
[EventDate "2022.04.18"]
[EventCountry "IND"]
[SourceTitle "playchess.com"]
[Source "ChessBase"]
[SourceQuality "1"]
[TimeControl "5400+30"]

{[%evp 18,64,16,26,52,39,23,21,47,45,50,41,37,0,0,-20,18,29,73,65,60,34,58,0,0,0,184,0,0,-29,-34,-87,-8,-112,-58,-2057,-67,-66,-57,-665,-105,-256,-138,-464,-458,-615,-574,-610,-607]} 1. e4 {[%emt 0:00:02]} c5 {[%emt 0:00:46]} 2. Nf3 {[%emt 0:00:06]} d6 {[%emt 0:00:04]} 3. d4 {[%emt 0:00:07]} cxd4 {[%emt 0:00:05]} 4. Nxd4 {[%emt 0:00:07]} Nf6 {[%emt 0:00:04]} 5. Nc3 {[%emt 0:00:10]} Nc6 {[%emt 0:00:03]} 6. Bg5 {[%emt 0:00:09]} e6 {[%emt 0:00:05]} 7. Qd2 {[%emt 0:00:12]} a6 {[%emt 0:00:06]} 8. O-O-O {[%emt 0:00:08]} Bd7 $1 {[%emt 0:00:04] 8...Bd7 scores better than 8...h6.} 9. f3 {[%emt 0:00:20]} Nxd4 {[%emt 0:00:08]} 10. Qxd4 {[%emt 0:00:08]} Be7 {[%emt 0:00:04] B67: Sicilian: Richter-Rauzer: 7...a6 8 0-0-0 Bd7, lines without 9 f4 Be7.} 11. Kb1 {[%emt 0:01:40]} Qc7 {[%emt 0:01:36]} 12. h4 {[%emt 0:02:00]} Rc8 {[%emt 0:05:59] The position is equal.} 13. g4 {[%emt 0:04:01]} h5 {[%emt 0:03:19]} 14. gxh5 {[%emt 0:01:45]} Nxh5 {[%emt 0:06:42] [#]} 15. Bh3 $146 {[%emt 0:10:33]} ({Predecessor:} 15. Qd2 b5 16. Bd3 b4 17. Ne2 a5 18. f4 Rb8 19. Rhf1 a4 20. e5 d5 21. f5 Bxg5 22. hxg5 exf5 23. Bxf5 Bxf5 24. Rxf5 {½-½ (44) Oparin,G (2622)-Gabrielian,A (2493) Batumi 2018}) 15... b5 {[%emt 0:03:32]} 16. Rhe1 {[%emt 0:03:27]} Nf6 {[%emt 0:30:48]} (16... a5 $5 {[%cal Rb5b4]}) 17. Qd2 {[%emt 0:04:46]} b4 {[%emt 0:01:49]} 18. Ne2 {[%emt 0:00:59] &Bianco is more active.} a5 {[%emt 0:00:05]} 19. Nd4 $1 {[%emt 0:01:05]} a4 {[%emt 0:13:16]} 20. f4 {[%emt 0:10:50]} (20. Qxb4 $14 Rb8 21. Qd2 (21. Qa3 Rb7 $14)) 20... a3 $1 $11 {[%emt 0:00:22]} 21. e5 $1 {[%emt 0:03:06]} axb2 $2 {[%emt 0:06:08] [#]} 22. exf6 $2 {[%emt 0:06:46] Dancing on a razor blade.} (22. Nxe6 $1 $18 {[%mdl 512]} fxe6 23. exd6) 22... gxf6 {[%emt 0:00:03]} 23. f5 {[%emt 0:16:01]} e5 $36 {[%emt 0:00:29][%mdl 2048] Black is pushing.} (23... fxg5 $2 24. fxe6 fxe6 25. Bxe6 Bxe6 26. Rxe6 $18) 24. Bh6 {[%emt 0:03:26]} ({Better is} 24. Be3 $15) 24... Qc3 {[%emt 0:12:20]} (24... d5 $17 {Hoping for ...Ra8.} 25. Bg2 b3 26. Bxd5 (26. cxb3 $2 Rxh6 27. Bxd5 exd4 $19) 26... bxc2+ 27. Nxc2 Rxh6 $1 {[%mdl 512]}) 25. Bg4 {[%emt 0:11:17] [#]} (25. Bg2 $1 $11) 25... Qxd2 {[%emt 0:07:12]} (25... Qxd4 $2 26. Qxd4 exd4 27. Bg7 $18) (25... Qa3 $1 $17 {( -> ...Ra8)} 26. Bf3 Rc5) 26. Bg5 $2 {[%mdl 8192]} Qe3 $2 27. Bxe3 $15 {[%emt 0:00:35]} Rxh4 {[%emt 0:00:44]} ({But not} 27... exd4 28. Bxd4 Kf8 29. h5 $11) 28. Bd2 $2 {[%emt 0:01:33][%mdl 8192]} exd4 $2 {[%emt 0:00:18]} (28... Rxg4 $19 {is more deadly.} 29. Bxb4 Rc4) 29. Rg1 $2 {[%emt 0:04:18]} (29. Rh1 $17 Rxh1 30. Rxh1) 29... Rc5 (29... Ba4 $19 30. Rde1 Bxc2+ 31. Kxb2 Kd7) 30. Bxb4 $2 {[%mdl 8192]} (30. Be1 $17 {is a better chance.} Rh2 31. Rd2 Rxd2 32. Bxd2) 30... Rc4 $19 {[%emt 0:00:59] Black is clearly winning.} 31. Be1 {[%emt 0:12:32] [#]} d3 $1 {[%emt 0:00:15][%mdl 512]} 32. cxd3 {[%emt 0:01:14]} Rhxg4 {[%emt 0:00:06][%mdl 32768] Weighted Error Value: White=1.13/Black=0.93. An unexpected result.} 1/2-1/2

[Event "31st MPL National U18 Chess-ch 2022"]
[Site "Pollachi"]
[Date "2022.04.19"]
[Round "3.6"]
[White "Soham Kamotra"]
[Black "Dhruva Thota"]
[Result "1-0"]
[ECO "A26"]
[WhiteElo "2229"]
[BlackElo "1525"]
[Annotator "TA"]
[PlyCount "134"]
[EventDate "2022.04.18"]
[EventCountry "IND"]
[SourceTitle "playchess.com"]
[Source "ChessBase"]
[SourceQuality "1"]
[TimeControl "5400+30"]

{[%evp 19,134,-17,0,0,0,-31,78,78,78,67,76,70,78,78,102,103,107,100,104,111,120,133,134,125,146,117,120,119,160,158,292,322,300,304,310,290,308,300,393,401,463,446,474,460,618,563,696,712,709,699,693,685,652,645,715,540,693,703,889,763,809,0,802,497,473,473,461,459,537,553,470,115,115,125,220,231,897,706,833,833,808,757,469,679,660,380,681,371,660,0,653,243,653,653,653,415,353,115,1230,1396,1168,877,2982,1813,29968,29971,29971,29972,29972,29973,29973,29974,29974,29974,29974,29973,29974]} 1. c4 {[%emt 0:00:14]} e5 {[%emt 0:00:13]} 2. Nc3 {[%emt 0:00:04]} Nc6 {[%emt 0:00:07]} 3. g3 {[%emt 0:00:03]} g6 {[%emt 0:00:08]} 4. Bg2 {[%emt 0:00:05]} Bg7 {[%emt 0:00:06]} 5. e4 {[%emt 0:00:03]} Nge7 {[%emt 0:01:39]} 6. Nge2 {[%emt 0:00:08]} O-O {[%emt 0:01:10]} 7. O-O {[%emt 0:00:07]} d6 {[%emt 0:00:37]} 8. d3 {[%emt 0:00:05]} Be6 {[%emt 0:01:02]} 9. h3 {[%emt 0:00:07]} Qd7 {[%emt 0:01:02]} 10. Kh2 {[%emt 0:01:01]} f5 {[%emt 0:01:52][%cal Of5f4]} 11. Nd5 {[%emt 0:01:37] Inhibits f4. A26: English Opening vs King's Indian with ...Nc6 and d3.} Rab8 {[%emt 0:03:06]} 12. Be3 {[%emt 0:04:15]} Nd4 {[%emt 0:04:38]} (12... b5 $1 $15 {keeps the upper hand.} 13. c5 Bf7) 13. Nxd4 $16 {[%emt 0:04:35] White is better.} exd4 {[%emt 0:01:08] [#]} 14. Bg5 $146 {[%emt 0:00:03] &Bianco is more active.} ({Predecessor:} 14. Bd2 c6 15. Nxe7+ Qxe7 16. b3 Rf7 17. f4 h5 18. exf5 Bxf5 19. Qf3 Re8 20. Rae1 {½-½ (52) Kraschl,J (2210)-Podkriznik,G (2290) Finkenstein 1994}) 14... Nxd5 {[%emt 0:06:30]} 15. exd5 {[%emt 0:00:21]} ({Reject} 15. cxd5 Bf7 $11) 15... Bf7 {[%emt 0:00:08]} 16. Qd2 {[%emt 0:00:21]} c5 {[%emt 0:02:48]} 17. dxc6 {[%emt 0:15:56]} bxc6 {[%emt 0:00:37]} 18. Rfe1 {[%emt 0:01:38] Black must now prevent Re7.} Rfe8 {[%emt 0:02:16] Prevents Re7.} 19. b4 {[%emt 0:00:22]} Rxe1 {[%emt 0:09:34]} 20. Rxe1 {[%emt 0:00:07] Re7 is the strong threat.} Re8 {[%emt 0:00:04] Inhibits Re7.} 21. Rb1 {[%emt 0:05:59]} a6 {[%emt 0:01:12] Prevents b5.} 22. Bf3 {[%emt 0:00:52]} Rb8 {[%emt 0:01:42]} 23. a3 {[%emt 0:04:51]} c5 {[%emt 0:17:34] [#]} 24. Rb2 $1 {[%emt 0:12:26]} Be8 {[%emt 0:07:29]} (24... Qe8 $16 {was necessary.} 25. Qc1 Be5) 25. bxc5 $18 {[%emt 0:03:03]} Rxb2 {[%emt 0:00:47]} 26. Qxb2 {[%emt 0:00:03]} dxc5 {[%emt 0:01:22]} 27. Qb6 {[%emt 0:01:10][%csl LRa6,LRc5] Against Qa7} h6 {[%emt 0:07:28]} 28. Bf4 {[%emt 0:00:06]} Qe7 {[%emt 0:06:17]} (28... g5 $2 29. Bd6 $18) 29. Bd6 {[%emt 0:02:54]} Qe1 {[%emt 0:03:02]} 30. Kg2 {[%emt 0:00:05]} Bf7 {[%emt 0:02:31]} 31. Bxc5 {[%emt 0:03:59]} Qc3 {[%emt 0:00:49]} 32. Qd8+ {[%emt 0:03:09]} Kh7 {[%emt 0:00:06]} 33. Qd7 {[%emt 0:00:04]} Kg8 {[%emt 0:00:11]} 34. Bd5 {[%emt 0:02:13]} Bxd5+ {[%emt 0:01:23]} 35. Qxd5+ {[%emt 0:00:02]} Kh7 {[%emt 0:00:01]} 36. Qf3 {[%emt 0:00:12]} a5 {[%emt 0:02:35]} 37. h4 {[%emt 0:00:45]} h5 {[%emt 0:00:30]} 38. Bd6 {[%emt 0:00:58]} Qb3 {[%emt 0:00:58]} 39. Kh2 {[%emt 0:00:25]} Qa2 {[%emt 0:01:08]} 40. Kg2 {[%emt 0:01:58]} Qb3 $1 {[%emt 0:00:38] Prevents Qb7.} 41. Qe2 {[%emt 0:01:53]} Qb7+ {[%emt 0:00:16]} 42. Kh2 {[%emt 0:00:03]} Qb3 {[%emt 0:00:37]} 43. Be7 {[%emt 0:04:51]} Qc3 {[%emt 0:05:47]} 44. a4 {[%emt 0:03:29]} Qb3 {[%emt 0:00:35]} 45. Bd8 $2 {[%emt 0:08:05]} (45. c5 $18 {is the precise move to win.}) 45... Qxa4 $16 {[%emt 0:00:41]} 46. Qd2 {[%emt 0:18:43]} Qb4 {[%emt 0:03:33]} (46... f4 $16) 47. Bxa5 $18 {[%emt 0:00:00]} Qxd2 {[%emt 0:00:02]} (47... Qb8 48. c5 Qc8) 48. Bxd2 {[%emt 0:00:00][%mdl 4096] [#] Endgame Threatens to win with c5. KB-KB} Bf8 {[%emt 0:00:17]} 49. Kg2 {[%emt 0:00:00]} Kg7 {[%emt 0:00:18]} 50. Ba5 {[%emt 0:00:00]} Bc5 {[%emt 0:01:23]} 51. Kf3 {[%emt 0:00:00]} Kf6 {[%emt 0:00:14]} 52. Ke2 {[%emt 0:00:00]} Ke6 $2 {[%emt 0:02:17]} (52... f4 53. gxf4 Be7) 53. Kd2 {[%emt 0:00:00]} Kd7 $2 {[%emt 0:01:24]} (53... f4 54. Ke2 (54. gxf4 Kf5 $16) 54... Be7) 54. Ke2 {[%emt 0:00:00]} Ke6 {[%emt 0:00:08]} 55. Kf1 $2 {[%emt 0:00:00]} (55. f4 Kd6 56. Kd2) 55... Kd7 $2 {[%emt 0:00:40]} (55... f4 56. Kg2 (56. gxf4 Kf5 $16) 56... fxg3) 56. Kg2 {[%emt 0:00:00]} Kc6 {[%emt 0:02:45]} 57. f3 {[%emt 0:00:00]} Be7 {[%emt 0:00:14]} 58. Be1 {[%emt 0:00:00] And now Bd2 would win.} g5 $2 {[%emt 0:00:13][%mdl 8192] Loses the game.} (58... Bc5 $16 59. Bd2 Be7) 59. hxg5 {[%emt 0:00:00]} Bxg5 {[%emt 0:00:05]} 60. g4 {[%emt 0:00:00]} hxg4 {[%emt 0:00:47]} 61. fxg4 {[%emt 0:00:00]} fxg4 {[%emt 0:00:30]} 62. Kg3 {[%emt 0:00:00] White mates.} Be3 {[%emt 0:00:15]} 63. Kxg4 {[%emt 0:00:00]} Kc5 {[%emt 0:00:54]} 64. Kf5 {[%emt 0:00:00]} Bc1 {[%emt 0:00:30]} 65. Ke4 {[%emt 0:00:00]} Be3 {[%emt 0:01:02]} 66. Bg3 {[%emt 0:00:00]} Bg1 {[%emt 0:00:23]} 67. Bb8 {[%emt 0:00:00]} Kb6 {[%emt 0:01:06] Weighted Error Value: White=0.73/Black=0.59} 1-0

[Event "31st MPL National U18 Chess-ch 2022"]
[Site "Pollachi"]
[Date "2022.04.19"]
[Round "3.7"]
[White "Ilamparthi A R"]
[Black "Apoorv Kamble"]
[Result "0-1"]
[ECO "C00"]
[WhiteElo "1969"]
[BlackElo "1679"]
[Annotator "TA"]
[PlyCount "78"]
[EventDate "2022.04.18"]
[EventCountry "IND"]
[SourceTitle "playchess.com"]
[Source "ChessBase"]
[SourceQuality "1"]
[TimeControl "5400+30"]

{[%evp 22,78,-12,-25,46,49,49,64,53,58,67,-20,-15,-59,-66,-67,-58,-58,-42,-288,-297,-291,-275,-275,-289,-272,-268,-434,-433,-452,-449,-445,-445,-417,-431,-423,-408,-460,-460,-446,-452,-632,-636,-629,-599,-662,-654,-677,-684,-674,-647,-671,-620,-29976,-29977,-29976,-29977,-29986,-29987]} 1. Nf3 {[%emt 0:00:02]} Nf6 {[%emt 0:00:07]} 2. g3 {[%emt 0:00:03]} e6 {[%emt 0:00:06]} 3. Bg2 {[%emt 0:00:07]} d5 {[%emt 0:01:13]} 4. O-O {[%emt 0:00:07]} b6 {[%emt 0:00:02]} 5. d3 {[%emt 0:00:06]} Bb7 {[%emt 0:00:07]} 6. Nbd2 {[%emt 0:00:09][%cal Bb1d2,Bd2f1,Bf1h2,Bh2g4][%mdl 32]} Be7 {[%emt 0:00:52]} 7. e4 {[%emt 0:00:54]} O-O {[%emt 0:01:20]} 8. e5 {[%emt 0:00:45]} Nfd7 {[%emt 0:00:15]} 9. Re1 {[%emt 0:00:07]} c5 {[%emt 0:01:42]} 10. Nf1 {[%emt 0:00:16]} Nc6 {[%emt 0:00:39]} 11. h4 {[%emt 0:01:10]} Re8 {[%emt 0:02:12]} 12. N1h2 {[%emt 0:01:48]} f6 {[%emt 0:16:15] C00: French: Unusual White 2nd moves.} (12... b5 $11) 13. exf6 $14 {[%emt 0:06:02]} Bxf6 {[%emt 0:00:11]} 14. Ng4 {[%emt 0:00:18]} Qc7 {[%emt 0:02:27] White is slightly better.} 15. Ng5 {[%emt 0:10:46]} Qd6 {[%emt 0:00:49] [#]} 16. c4 $146 {[%emt 0:14:33]} (16. c3 $1 $14 Bxg5 17. hxg5) ({Predecessor:} 16. c3 Rad8 17. Qb3 Nf8 18. Bf4 Qd7 19. Bh3 Ba6 20. Qd1 h6 21. Nf3 h5 22. Nge5 Nxe5 23. Bxe5 {1-0 (67) Dios,E (2086)-Nies,P (2056) Germany 2016}) 16... Nd4 $11 {[%emt 0:06:38]} 17. cxd5 {[%emt 0:11:56] [#] Threatens to win with Ne4.} Bxg5 {[%emt 0:09:02]} (17... Bxd5 18. Ne4 Qf8 19. Bd2 $11) (17... exd5 18. Bf4 Rxe1+ 19. Qxe1 $11) 18. hxg5 {[%emt 0:07:45]} Bxd5 {[%emt 0:01:04]} ({Don't play} 18... exd5 19. Be3 $11) 19. Be4 {[%emt 0:00:20]} Rf8 {[%emt 0:13:39] aiming for ...Nf3+.} 20. Bf4 $2 {[%emt 0:09:10] Now White is beyond hope.} ({White should play} 20. f4 $15) 20... Rxf4 $19 {[%emt 0:07:24]} 21. gxf4 {[%emt 0:06:03]} Qxf4 {[%emt 0:00:26]} 22. Nh2 {[%emt 0:02:30]} Rf8 {[%emt 0:10:18] Chess con chili.} ({And not} 22... Qxg5+ 23. Qg4 Qxg4+ 24. Nxg4 $17) 23. Bxd5 {[%emt 0:08:19]} exd5 {[%emt 0:00:54]} ({Not} 23... Qxf2+ 24. Kh1 exd5 25. Rf1 Qxb2 26. Qa4 $17) 24. Kh1 $2 {[%emt 0:00:48]} (24. Qg4 Qxf2+ 25. Kh1) 24... Ne5 {[%emt 0:01:06] Pair of Knights!} 25. Re3 {[%emt 0:02:13]} Nef3 {[%emt 0:01:37]} 26. Nxf3 {[%emt 0:06:18]} Nxf3 {[%emt 0:00:12]} 27. Rxf3 {[%emt 0:00:41]} Qxf3+ {[%emt 0:00:07]} 28. Qxf3 {[%emt 0:00:06]} Rxf3 {[%emt 0:00:04][%mdl 4096] Endgame KR-KR} 29. Kg2 {[%emt 0:00:04]} Rxd3 {[%emt 0:00:13]} 30. Re1 {[%emt 0:00:04]} Kf7 {[%emt 0:00:19] Against Re8} 31. Re5 {[%emt 0:00:06]} Rd2 {[%emt 0:00:31]} 32. b3 {[%emt 0:00:07]} d4 {[%emt 0:00:21][%cal Bd5d4,Bd4d3][%mdl 32]} 33. a4 {[%emt 0:00:23]} Rb2 {[%emt 0:00:07]} 34. Kf3 {[%emt 0:00:03]} Rxb3+ {[%emt 0:00:12]} 35. Ke4 {[%emt 0:00:05]} Rb2 {[%emt 0:02:35]} 36. Rf5+ {[%emt 0:00:13]} Kg6 {[%emt 0:00:58] [#] ( -> ...Re2+)} 37. f3 {[%emt 0:00:07]} d3 {[%emt 0:01:34] Black mates.} 38. Rd5 {[%emt 0:00:06]} Rb4+ {[%emt 0:00:04]} 39. Ke5 {[%emt 0:00:36]} Rd4 {[%emt 0:00:09] Weighted Error Value: White=0.70/Black=0.08 (flawless)} 0-1